fUST/lending_fUST_20240806
["ID","MTS","AMOUNT","RATE_DAILY","PERIOD"]
[334276768,1722882654658,-500.0,0.00041643,31]
[334276769,1722882654667,-500.0,0.00041643,31]
[334276770,1722882654676,-500.0,0.00041643,31]
[334276771,1722882654685,-500.0,0.00041643,31]
[334276772,1722882654694,-500.0,0.00041643,31]
[334276773,1722882654703,-500.0,0.00041643,31]
[334276774,1722882654712,-500.0,0.00041643,31]
[334276775,1722882654722,-500.0,0.00041643,31]
[334276776,1722882654731,-500.0,0.00041643,31]
[334276777,1722882654741,-500.0,0.00041643,31]
[334276778,1722882654751,-500.0,0.00041643,31]
[334276779,1722882654761,-500.0,0.00041643,31]
[334276780,1722882654770,-500.0,0.00041643,31]
[334276781,1722882654780,-500.0,0.00041643,31]
[334276782,1722882654790,-205.57268217,0.00041643,31]
[334276783,1722882654800,-500.0,0.00041643,31]
[334276784,1722882654809,-435.22703994,0.00041643,31]
[334276785,1722882654824,-265.1739364,0.00041643,31]
[334276786,1722882654834,-500.0,0.00041643,31]
[334276787,1722882654843,-464.43614291,0.00041643,31]
[334276788,1722882654853,-500.0,0.00041643,31]
[334276789,1722882654863,-500.0,0.00041643,31]
[334276790,1722882654873,-500.0,0.00041643,31]
[334276791,1722882654882,-505.5090072,0.00041643,31]
[334276792,1722882654891,-500.0,0.00041643,31]
[334276793,1722882654901,-500.0,0.00041643,31]
[334276794,1722882654911,-500.0,0.00041643,31]
[334276795,1722882654920,-500.0,0.00041643,31]
[334276796,1722882654930,-500.0,0.00041643,31]
[334276797,1722882654939,-510.83707425,0.00041643,31]
[334276798,1722882654949,-500.0,0.00041643,31]
[334276799,1722882654958,-396.76220915,0.00041643,31]
[334276800,1722882654967,-500.0,0.00041643,31]
[334276801,1722882654976,-422.06808385,0.00041643,31]
[334276802,1722882654985,-500.0,0.00041643,31]
[334276803,1722882654994,-500.0,0.00041643,31]
[334276804,1722882655004,-491.33459641,0.00041643,31]
[334276805,1722882655013,-500.0,0.00041643,31]
[334276806,1722882655022,-500.0,0.00041643,31]
[334276807,1722882655032,-554.84,0.00041643,31]
[334276808,1722882655041,-506.76471573,0.00041643,31]
[334276809,1722882655051,-500.0,0.00041643,31]
[334276810,1722882655070,-500.0,0.00041643,31]
[334276811,1722882655079,-500.0,0.00041643,31]
[334276812,1722882655088,-500.0,0.00041643,31]
[334276813,1722882655098,-500.0,0.00041643,31]
[334276814,1722882655108,-500.0,0.00041643,31]
[334276815,1722882655117,-573.50308911,0.00041643,31]
[334276816,1722882655126,-500.0,0.00041643,2]
[334276817,1722882655135,-231.6,0.00041643,21]
[334276818,1722882655145,-500.0,0.00041643,31]
[334276819,1722882655154,-500.0,0.00041643,31]
[334276820,1722882655164,-500.0,0.00041643,31]
[334276821,1722882655174,-500.0,0.00041643,31]
[334276822,1722882655183,-500.0,0.00041643,31]
[334276823,1722882655192,-500.0,0.00041643,31]
[334276824,1722882655201,-500.0,0.00041643,31]
[334276825,1722882655210,-500.0,0.00041643,31]
[334276826,1722882655220,-500.0,0.00041643,31]
[334276827,1722882655229,-500.0,0.00041643,31]
[334276828,1722882655239,-151.0,0.00041643,14]
[334276829,1722882655248,-151.0,0.00041643,14]
[334276830,1722882655259,-500.0,0.00041643,31]
[334276831,1722882655270,-500.0,0.00041643,31]
[334276832,1722882655279,-151.0,0.00041643,14]
[334276833,1722882655289,-151.0,0.00041643,14]
[334276834,1722882655298,-500.0,0.00041643,31]
[334276835,1722882655308,-500.0,0.00041643,31]
[334276836,1722882655323,-500.0,0.00041643,31]
[334276837,1722882655332,-500.0,0.00041643,31]
[334276838,1722882655342,-500.0,0.00041643,31]
[334276839,1722882655351,-500.0,0.00041643,31]
[334276840,1722882655361,-500.0,0.00041643,31]
[334276841,1722882655372,-500.0,0.00041643,31]
[334276842,1722882655381,-500.0,0.00041643,31]
[334276843,1722882655391,-500.0,0.00041643,31]
[334276844,1722882655400,-500.0,0.00041643,31]
[334276845,1722882655409,-500.0,0.00041643,31]
[334276846,1722882655418,-500.0,0.00041643,31]
[334276847,1722882655428,-255.02800001,0.00041643,31]
[334276848,1722882655437,-500.0,0.00041643,31]
[334276849,1722882655447,-500.0,0.00041643,31]
[334276850,1722882655457,-500.0,0.00041643,31]
[334276851,1722882655467,-500.0,0.00041643,31]
[334276852,1722882655476,-500.0,0.00041643,31]
[334276853,1722882655486,-500.0,0.00041643,31]
[334276854,1722882655496,-500.0,0.00041643,31]
[334276855,1722882655506,-500.0,0.00041643,31]
[334276856,1722882655515,-500.0,0.00041643,31]
[334276857,1722882655524,-500.0,0.00041643,31]
[334276858,1722882655534,-500.0,0.00041643,31]
[334276859,1722882655543,-500.0,0.00041643,31]
[334276860,1722882655552,-500.0,0.00041643,31]
[334276861,1722882655561,-500.0,0.00041643,31]
[334276862,1722882655577,-500.0,0.00041643,31]
[334276863,1722882655586,-500.0,0.00041643,31]
[334276864,1722882655595,-500.0,0.00041643,31]
[334276865,1722882655605,-500.0,0.00041643,31]
[334276866,1722882655614,-611.94,0.00041643,31]
[334276867,1722882655624,-500.0,0.00041643,31]
[334276868,1722882655633,-500.0,0.00041643,31]
[334276869,1722882655643,-500.0,0.00041643,31]
[334276870,1722882655652,-500.0,0.00041643,31]
[334276871,1722882655661,-500.0,0.00041643,31]
[334276872,1722882655671,-500.0,0.00041643,31]
[334276873,1722882655680,-500.0,0.00041643,31]
[334276874,1722882655690,-500.0,0.00041643,31]
[334276875,1722882655699,-500.0,0.00041643,31]
[334276876,1722882655709,-500.0,0.00041643,31]
[334276877,1722882655719,-500.0,0.00041643,31]
[334276878,1722882655729,-500.0,0.00041643,31]
[334276879,1722882655739,-500.0,0.00041643,31]
[334276880,1722882655750,-172.91782969,0.00041643,31]
[334276881,1722882656118,-450.0,0.00040199,31]
[334276882,1722882656127,-500.0,0.00041095,31]
[334276883,1722882656136,-500.0,0.00041095,31]
[334276884,1722882656148,-714.991063,0.00041095,14]
[334276885,1722882656260,-714.991063,0.00041095,14]
[334276886,1722882656269,-500.0,0.00041095,31]
[334276887,1722882656278,-500.0,0.00041095,31]
[334276888,1722882656288,-141.47284561,0.00041643,31]
[334276889,1722882656300,-185.6093247,0.00041643,31]
[334276890,1722882656309,-500.0,0.00041643,31]
[334276891,1722882656323,-500.0,0.00041643,31]
[334276892,1722882656333,-500.0,0.00041643,31]
[334276893,1722882656342,-503.76,0.00041643,31]
[334276894,1722882656352,-500.0,0.00041643,31]
[334276895,1722882656361,-418.52107192,0.00041643,31]
[334276896,1722882656374,-84.64902194,0.00041643,31]
[334276897,1722882656385,-500.0,0.00041643,31]
[334276898,1722882656395,-500.0,0.00041643,31]
[334276899,1722882656405,-500.0,0.00041643,31]
[334276900,1722882656414,-500.0,0.00041643,31]
[334276901,1722882656424,-500.0,0.00041643,31]
[334276902,1722882656434,-500.0,0.00041643,31]
[334276903,1722882656445,-500.0,0.00041643,31]
[334276904,1722882656455,-500.0,0.00041643,31]
[334276905,1722882656464,-500.0,0.00041643,31]
[334276906,1722882656474,-500.0,0.00041643,31]
[334276907,1722882656484,-500.0,0.00041643,31]
[334276908,1722882656494,-500.0,0.00041643,31]
[334276909,1722882656503,-500.0,0.00041643,31]
[334276910,1722882656513,-355.41245713,0.00041643,31]
[334276911,1722882656752,273.37336231,0.00027,120]
[334276912,1722882661631,153.46,0.000266,31]
[334276913,1722882661660,153.46,0.000266,31]
[334276914,1722882661690,153.46,0.000266,31]
[334276915,1722882661719,153.46,0.000266,31]
[334276916,1722882661747,153.46,0.000266,31]
[334276917,1722882661775,153.46,0.000305,31]
[334276918,1722882661805,153.46,0.000305,31]
[334276919,1722882661836,153.46,0.000305,31]
[334276920,1722882661865,153.46,0.000305,31]
[334276921,1722882661913,153.46,0.000305,31]
[334276922,1722882661975,153.46,0.000344,31]
[334276923,1722882662037,153.46,0.000344,31]
[334276924,1722882662103,153.46,0.000344,31]
[334276925,1722882662160,153.46,0.000344,31]
[334276926,1722882662220,153.46,0.000344,31]
[334276933,1722883473535,167.316904,0.00014247,2]
[334276935,1722883630129,-159.25334668,0.00021011,2]
[334276936,1722883630153,-30.56948778,0.00025,30]
[334276937,1722883630185,-218.80378519,0.00025,30]
[334276938,1722883637145,-250.62672703,0.00025,30]
[334276939,1722883637169,-500.0,0.00025,30]
[334276940,1722883637191,-500.0,0.00025,30]
[334276941,1722883637212,-500.0,0.00025,30]
[334276942,1722883637234,-452.0,0.00025,30]
[334276943,1722883637260,-80.94474599,0.000266,31]
[334276944,1722883751111,-402.3465429,0.00026589,2]
[334276945,1722883751138,-72.60525401,0.000266,31]
[334276946,1722883751163,-153.55,0.000266,31]
[334276947,1722883751187,-153.55,0.000305,31]
[334276948,1722883751211,-153.55,0.000305,31]
[334276949,1722883751232,-201.586967,0.00032857,120]
[334276950,1722883751253,-250.0,0.00032861,2]
[334276951,1722883751274,-2000.0,0.00032877,2]
[334276952,1722883751295,-2000.0,0.00032877,2]
[334276953,1722883751315,-200.0,0.00032891,30]
[334276954,1722883751343,-153.55,0.000344,31]
[334276955,1722883751367,-153.55,0.000344,31]
[334276956,1722883751388,-167.316904,0.00034703,2]
[334276957,1722883751408,-3012.88919167,0.0003726,31]
[334276958,1722883765880,2000.0,0.00035616,2]
[334276959,1722883783044,1712.56284516,0.00032877,2]
[334276960,1722883783066,287.43715484,0.00032877,2]
[334276961,1722883805610,250.39027258,0.00027,120]
[334276962,1722883816972,2000.0,0.00035616,2]
[334276963,1722883829714,1094.55873967,0.00025,30]
[334276997,1722883833404,-858.56905389,0.0003726,31]
[334276999,1722883833417,-267.53,0.0003726,31]
[334277001,1722883833429,-4903.59226137,0.0003726,31]
[334277015,1722883835753,1166.05554183,0.00032877,2]
[334277016,1722883835779,2003.94445817,0.00032877,2]
[334277028,1722883838819,-2400.06826654,0.0003726,31]
[334277044,1722883842950,-5932.14333108,0.0003726,31]
[334277046,1722883842960,-153.55,0.000383,31]
[334277047,1722883842969,-153.55,0.000383,31]
[334277048,1722883842979,-2000.0,0.00038356,2]
[334277049,1722883842988,-3868.0,0.00039,120]
[334277050,1722883842998,-395.23801777,0.00039896,2]
[334277051,1722883843008,-423.31755793,0.00039999,31]
[334277052,1722883843019,-500.0,0.00039999,31]
[334277053,1722883843028,-500.0,0.00039999,31]
[334277054,1722883843037,-500.0,0.00039999,31]
[334277055,1722883843048,-409.62580055,0.00039999,31]
[334277056,1722883843057,-366.34372886,0.00039999,7]
[334277057,1722883843067,-500.0,0.00039999,31]
[334277058,1722883843076,-500.0,0.00039999,31]
[334277059,1722883843085,-505.80860778,0.00039999,31]
[334277060,1722883843094,-500.0,0.00039999,31]
[334277061,1722883843104,-591.19884924,0.00039999,31]
[334277062,1722883843113,-500.0,0.00039999,31]
[334277063,1722883843123,-500.0,0.00039999,31]
[334277064,1722883843132,-500.0,0.00039999,31]
[334277065,1722883843141,-486.42809893,0.00039999,31]
[334277066,1722883843151,-5000.0,0.0004,30]
[334277067,1722883843160,-3868.0,0.0004,120]
[334277068,1722883843169,-3868.0,0.0004,120]
[334277069,1722883843178,-200.0,0.0004,2]
[334277070,1722883843188,-999.999999,0.00040414,120]
[334277071,1722883843197,-152.0,0.00040489,15]
[334277072,1722883843206,-639.08,0.00040547,30]
[334277073,1722883843216,-639.08,0.00040684,32]
[334277074,1722883843226,-152.0,0.00040774,15]
[334277075,1722883843235,-639.08,0.00040821,34]
[334277076,1722883843244,-639.08,0.00040958,36]
[334277077,1722883843254,-326.76386562,0.00040984,2]
[334277078,1722883843263,-1121.49,0.00040985,3]
[334277079,1722883843275,-23273.6098592,0.00040985,5]
[334277080,1722883843284,-326.7638656,0.00040987,2]
[334277081,1722883843294,-326.7638656,0.0004099,2]
[334277082,1722883843303,-23273.6098592,0.0004099,5]
[334277083,1722883843312,-326.7638656,0.00040992,2]
[334277084,1722883843322,-326.7638656,0.00040995,2]
[334277085,1722883843332,-88888.0,0.00040995,5]
[334277086,1722883843341,-2000.0,0.00040995,2]
[334277087,1722883843350,-165.13311976,0.00040999,31]
[334277088,1722883843360,-500.0,0.00040999,31]
[334277089,1722883843369,-604.73184062,0.00040999,31]
[334277090,1722883843379,-500.0,0.00040999,31]
[334277091,1722883843388,-500.0,0.00040999,31]
[334277092,1722883843397,-500.0,0.00040999,31]
[334277093,1722883843407,-500.0,0.00040999,31]
[334277094,1722883843416,-500.0,0.00040999,31]
[334277095,1722883843425,-500.0,0.00040999,31]
[334277096,1722883843435,-5000.0,0.00041,41]
[334277097,1722883843444,-3868.0,0.00041,120]
[334277099,1722883843454,-3868.0,0.00041,120]
[334277101,1722883843463,-3989.26,0.00041,120]
[334277103,1722883843472,-152.0,0.00041058,31]
[334277104,1722883843481,-51381.31834473,0.00041085,5]
[334277105,1722883843497,-3155.85,0.00041085,5]
[334277106,1722883843519,-872.43,0.00041085,5]
[334277107,1722883843533,-396.50084785,0.00041085,5]
[334277108,1722883843546,-289.7143998,0.00041085,5]
[334277121,1722883843815,22.4942882,0.00027,120]
[334277124,1722883843841,235.71959123,0.00027,120]
[334277170,1722883846957,-843.9301119,0.00040995,2]
[334277171,1722883846968,-130093.06528162,0.00041085,5]
[334277172,1722883846978,-500.0,0.00041095,31]
[334277173,1722883846988,-500.0,0.00041095,31]
[334277174,1722883846998,-500.0,0.00041095,31]
[334277175,1722883847008,-500.0,0.00041095,31]
[334277176,1722883847022,-500.0,0.00041095,31]
[334277177,1722883847032,-500.0,0.00041095,31]
[334277178,1722883847041,-500.0,0.00041095,31]
[334277179,1722883847051,-500.0,0.00041095,31]
[334277180,1722883847062,-483.23866892,0.00041095,31]
[334277181,1722883847073,-500.0,0.00041095,31]
[334277182,1722883847083,-500.0,0.00041095,31]
[334277183,1722883847092,-500.0,0.00041095,31]
[334277184,1722883847102,-500.0,0.00041095,31]
[334277185,1722883847114,-500.0,0.00041095,31]
[334277186,1722883847124,-500.0,0.00041095,31]
[334277187,1722883847134,-500.0,0.00041095,31]
[334277188,1722883847144,-340.20812402,0.00041095,31]
[334277189,1722883847154,-500.0,0.00041095,20]
[334277190,1722883847164,-500.0,0.00041095,31]
[334277191,1722883847174,-500.0,0.00041095,31]
[334277192,1722883847183,-506.85140986,0.00041095,31]
[334277193,1722883847193,-500.0,0.00041095,31]
[334277194,1722883847203,-506.08172079,0.00041095,31]
[334277195,1722883847214,-501.51729721,0.00041095,31]
[334277196,1722883847224,-500.0,0.00041095,31]
[334277197,1722883847234,-500.0,0.00041095,31]
[334277198,1722883847244,-500.0,0.00041095,31]
[334277199,1722883847254,-500.0,0.00041095,31]
[334277200,1722883847264,-500.0,0.00041095,31]
[334277201,1722883847279,-798.86,0.00041095,31]
[334277202,1722883847290,-500.0,0.00041095,31]
[334277203,1722883847300,-345.75199749,0.00041095,31]
[334277204,1722883847310,-500.0,0.00041095,31]
[334277205,1722883847320,-585.24886305,0.00041095,31]
[334277206,1722883847331,-500.0,0.00041095,31]
[334277207,1722883847341,-500.0,0.00041095,31]
[334277208,1722883847351,-500.0,0.00041095,31]
[334277209,1722883847361,-500.0,0.00041095,31]
[334277210,1722883847370,-500.0,0.00041095,31]
[334277211,1722883847380,-597.20773309,0.00041095,31]
[334277212,1722883847390,-416.08032361,0.00041095,31]
[334277213,1722883847401,-500.0,0.00041095,31]
[334277214,1722883847410,-500.0,0.00041095,31]
[334277215,1722883847420,-500.0,0.00041095,31]
[334277216,1722883847430,-214.90381116,0.00041095,31]
[334277217,1722883847440,-506.92874567,0.00041095,31]
[334277218,1722883847451,-500.0,0.00041095,31]
[334277219,1722883847461,-500.0,0.00041095,31]
[334277220,1722883847471,-500.0,0.00041095,31]
[334277221,1722883847482,-500.0,0.00041095,31]
[334277222,1722883847493,-500.0,0.00041095,31]
[334277223,1722883847504,-500.0,0.00041095,31]
[334277224,1722883847518,-500.0,0.00041095,31]
[334277225,1722883847530,-500.0,0.00041095,31]
[334277226,1722883847540,-500.0,0.00041095,31]
[334277227,1722883847550,-500.0,0.00041095,31]
[334277228,1722883847559,-500.0,0.00041095,31]
[334277229,1722883847569,-500.0,0.00041095,31]
[334277230,1722883847583,-500.0,0.00041095,31]
[334277231,1722883847593,-500.0,0.00041095,31]
[334277232,1722883847604,-500.0,0.00041095,31]
[334277233,1722883847615,-500.0,0.00041095,31]
[334277234,1722883847626,-500.0,0.00041095,31]
[334277235,1722883847636,-172.91782969,0.00041095,31]
[334277236,1722883847646,-500.0,0.00041095,31]
[334277237,1722883847656,-500.0,0.00041095,31]
[334277238,1722883847667,-500.0,0.00041095,31]
[334277239,1722883847677,-500.0,0.00041095,31]
[334277240,1722883847687,-500.0,0.00041095,31]
[334277241,1722883847697,-500.0,0.00041095,31]
[334277242,1722883847707,-500.0,0.00041095,31]
[334277243,1722883847716,-500.0,0.00041095,31]
[334277244,1722883847727,-500.0,0.00041095,31]
[334277245,1722883847737,-500.0,0.00041095,31]
[334277246,1722883847747,-500.0,0.00041095,31]
[334277247,1722883847757,-500.0,0.00041095,31]
[334277248,1722883847766,-514.0282447,0.00041095,31]
[334277249,1722883847781,-606.90777766,0.00041095,31]
[334277250,1722883847791,-500.0,0.00041095,31]
[334277251,1722883847800,-500.0,0.00041095,31]
[334277252,1722883847809,-500.0,0.00041095,31]
[334277253,1722883847818,-500.0,0.00041095,31]
[334277254,1722883847829,-500.0,0.00041095,31]
[334277255,1722883847839,-500.0,0.00041095,31]
[334277256,1722883847849,-500.0,0.00041095,31]
[334277257,1722883847858,-500.0,0.00041095,31]
[334277258,1722883847869,-500.0,0.00041095,31]
[334277259,1722883847879,-501.05190759,0.00041095,31]
[334277260,1722883847890,-500.0,0.00041095,31]
[334277261,1722883847900,-3525.43,0.00041095,31]
[334277262,1722883847910,-356.10154574,0.00041095,31]
[334277263,1722883848421,-143.89845426,0.00041095,31]
[334277264,1722883848431,-156.88875574,0.00041095,31]
[334277265,1722883853112,273.37336231,0.00027,120]
[334277266,1722883866776,153.68,0.000266,31]
[334277267,1722883866838,153.68,0.000305,31]
[334277268,1722883866902,153.68,0.000344,31]
[334277269,1722883908166,414.88650261,0.00021916,2]
[334277275,1722884126889,167.316904,0.00014247,2]
[334277276,1722884171503,93.884215,0.00014247,2]
[334277290,1722884747154,-210.68435147,0.00014247,2]
[334277293,1722884832157,-316.49179093,0.00014247,2]
[334277294,1722884838117,-201.20456961,0.00014247,2]
[334277295,1722884838142,-1041.51620061,0.0002028,2]
[334277296,1722884849102,-184.88057625,0.0002028,2]
[334277297,1722884849125,-0.77610257,0.00020721,2]
[334277301,1722884956130,-1118.24321722,0.00020721,2]
[334277302,1722884959133,-3062.78003575,0.00020721,2]
[334277303,1722884959157,-789.38861408,0.0002217,2]
[334277304,1722884960124,-92.08835285,0.0002217,2]
[334277305,1722884960145,-209.53927788,0.00025116,2]
[334277306,1722884960167,-151.0,0.0003,120]
[334277307,1722884964142,-1080.9634974,0.00032459,2]
[334277308,1722884967111,-151.0,0.00034603,120]
[334277309,1722884967133,-187.1879,0.00035609,120]
[334277369,1722885033135,-533.14051076,0.00039,120]
[334277370,1722885033146,-3017.775,0.00039,120]
[334277371,1722885033165,-317.08448924,0.00039,120]
[334277372,1722885033175,-151.0,0.00039205,120]
[334277373,1722885033184,-659.17980131,0.0004,120]
[334277398,1722885038465,-416.42424309,0.0004,120]
[334277403,1722885038568,-2792.3959556,0.0004,120]
[334277404,1722885038577,-3868.0,0.0004,120]
[334277405,1722885038586,-200.0,0.0004,2]
[334277406,1722885038597,-3725.7600588,0.00040466,2]
[334277407,1722885038606,-500.0,0.00040547,30]
[334277408,1722885038616,-153.0,0.00040548,2]
[334277409,1722885038626,-3725.7600588,0.00040558,2]
[334277410,1722885038635,-500.0,0.00040684,32]
[334277411,1722885038645,-500.0,0.00040821,34]
[334277412,1722885038658,-409.62580055,0.00040935,31]
[334277413,1722885038667,-331.82534433,0.00040935,31]
[334277414,1722885038676,-1411.0,0.00040936,2]
[334277415,1722885038685,-417.24,0.00040958,36]
[334277416,1722885038694,-570.94484545,0.00040969,2]
[334277417,1722885038703,-21109.87848308,0.0004097,5]
[334277418,1722885038713,-2000.0,0.0004097,2]
[334277419,1722885038722,-570.94484542,0.00040976,2]
[334277420,1722885038733,-570.94484542,0.00040982,2]
[334277421,1722885038742,-570.94484542,0.00040989,2]
[334277422,1722885038751,-570.94484542,0.00040995,2]
[334277423,1722885038760,-759.53710071,0.00040995,2]
[334277424,1722885038770,-500.0,0.00040999,120]
[334277425,1722885038790,-28526.80913,0.00041,30]
[334277426,1722885038800,-3868.0,0.00041,120]
[334277427,1722885038812,-3868.0,0.00041,120]
[334277428,1722885038822,-3989.26,0.00041,120]
[334277429,1722885038832,-1353.8,0.00041029,3]
[334277430,1722885038842,-14270.8763671,0.00041039,5]
[334277431,1722885038851,-500.0,0.00041059,31]
[334277432,1722885038862,-165.13311976,0.00041059,31]
[334277433,1722885038871,-500.0,0.00041059,31]
[334277434,1722885038882,-500.0,0.00041059,31]
[334277435,1722885038892,-500.0,0.00041059,31]
[334277436,1722885038904,-500.0,0.00041059,31]
[334277437,1722885038914,-500.0,0.00041059,31]
[334277438,1722885038923,-500.0,0.00041059,31]
[334277439,1722885038932,-604.73184062,0.00041059,31]
[334277440,1722885038942,-500.0,0.00041059,31]
[334277441,1722885038953,-500.0,0.00041059,31]
[334277442,1722885038963,-323.31228844,0.00041059,31]
[334277443,1722885038973,-28541.7527342,0.0004106,5]
[334277444,1722885038982,-34053.72705354,0.0004106,5]
[334277456,1722885040337,-2377.0,0.0004106,5]
[334277471,1722885040665,-254.091818,0.00041029,3]
[334277473,1722885040677,-1859.628182,0.00041029,3]
[334277475,1722885040686,-73078.44092366,0.0004106,5]
[334277477,1722885040698,-966.0,0.0004106,5]
[334277479,1722885040710,-18995.10000001,0.0004106,5]
[334277944,1722885046791,2503.17244935,0.00035609,30]
[334277947,1722885046813,4589.89647901,0.00035609,30]
[334277951,1722885046835,2906.93107164,0.00035609,30]
[334277954,1722885046856,-41780.24842779,0.0004106,5]
[334277956,1722885046869,-313.1489062,0.00041069,31]
[334277957,1722885046880,-377.27065965,0.00041069,31]
[334277959,1722885046889,-449.9692473,0.00041069,31]
[334277961,1722885046900,-385.31061276,0.00041069,31]
[334277963,1722885046911,-500.0,0.00041069,31]
[334277965,1722885046920,-500.0,0.00041069,31]
[334277967,1722885046930,-500.0,0.00041069,31]
[334277969,1722885046939,-500.0,0.00041069,31]
[334277971,1722885046950,-500.0,0.00041069,31]
[334277973,1722885046960,-500.0,0.00041069,31]
[334277975,1722885046970,-500.0,0.00041069,31]
[334277977,1722885046980,-500.0,0.00041069,31]
[334277979,1722885046989,-500.0,0.00041069,31]
[334277981,1722885046999,-500.0,0.00041069,31]
[334277983,1722885047009,-500.0,0.00041069,31]
[334277985,1722885047019,-500.0,0.00041069,31]
[334277987,1722885047028,-500.0,0.00041069,31]
[334277989,1722885047038,-500.0,0.00041069,31]
[334277991,1722885047047,-500.0,0.00041069,31]
[334277993,1722885047057,-500.0,0.00041069,31]
[334277995,1722885047067,-500.0,0.00041069,31]
[334277997,1722885047076,-500.0,0.00041069,31]
[334277999,1722885047085,-500.0,0.00041069,31]
[334278001,1722885047095,-421.06200635,0.00041069,31]
[334278003,1722885047104,-37612.7077437,0.0004107,21]
[334278005,1722885047114,-41275.7863085,0.0004107,21]
[334278007,1722885047123,-327997.4153173,0.0004107,30]
[334278076,1722885079459,167.316904,0.00014247,2]
[334278080,1722885151517,194.54850496,0.00017269,2]
[334278082,1722885164555,154.72922386,0.0002,15]
[334278091,1722885858961,964.9,0.00027,120]
[334278092,1722886026111,-1763.49757797,0.00015708,2]
[334278093,1722886026132,-156.95333335,0.00015708,2]
[334278094,1722886026153,-30.76033575,0.00015708,2]
[334278095,1722886027099,-988.31742582,0.00015708,2]
[334278096,1722886027121,-425.19184363,0.0002,2]
[334278097,1722886027144,-38.52674967,0.00025,30]
[334278098,1722886029114,-461.70419097,0.00025,30]
[334278099,1722886036150,-1826.68661071,0.00025,30]
[334278100,1722886036172,-26.37062844,0.00025231,2]
[334278101,1722886083076,298.89872198,0.0002,10]
[334278102,1722886145287,-167.316904,0.00014247,2]
[334278103,1722886145308,-2352.82902256,0.000155,2]
[334278105,1722886148169,-155.73423811,0.0002,2]
[334278106,1722886148250,-10.22734538,0.0002,2]
[334278107,1722886148271,-252.23751897,0.0002,2]
[334278108,1722886150110,-18.10154103,0.0002,2]
[334278109,1722886150132,-743.91771799,0.00025,30]
[334278110,1722886159146,-1258.98251565,0.00025,30]
[334278111,1722886164123,-945.26412317,0.00025,30]
[334278112,1722886164151,-593.77180134,0.00025231,2]
[334278113,1722886164175,-620.00712149,0.00026492,2]
[334278114,1722886164197,-203.0,0.00026599,2]
[334278115,1722886164227,-152.69,0.000266,31]
[334278116,1722886164258,-152.69,0.000266,31]
[334278117,1722886164281,-151.0,0.0003,120]
[334278118,1722886164305,-151.0,0.0003,120]
[334278119,1722886164335,-152.69,0.000305,31]
[334278120,1722886164365,-152.69,0.000305,31]
[334278121,1722886164392,-150.5,0.00031308,120]
[334278122,1722886164417,-150.5,0.00031318,120]
[334278123,1722886164440,-2140.36,0.00031328,3]
[334278124,1722886164464,-150.5,0.00031328,120]
[334278125,1722886164486,-272.09,0.00031328,120]
[334278126,1722886164508,-164.0,0.00033,2]
[334278127,1722886164530,-151.0,0.00033151,120]
[334278128,1722886164559,-152.69,0.000344,31]